bitfinex-derivatives/quotes_SOLF0:USTF0_20251002
["timestamp","ask_amount","ask_price","bid_price","bid_amount"]
[1759411845967,7.19,225.53,225.42,7.64]
[1759411846272,7.19,225.53,225.46,3.9898]
[1759411846571,35.39167196,225.63,225.42,7.64]
[1759411846572,40.72,225.56,225.45,7.64]
[1759411846772,40.72,225.56,225.49,3.9892]
[1759411847169,40.72,225.56,225.51,3.989]
[1759411847369,40.72,225.56,225.45,7.64]
[1759411847878,40.72,225.56,225.5,3.9891]
[1759411848267,40.72,225.56,225.47,3.9895]
[1759411848579,7.19,225.55,225.44,7.64]
[1759411848971,7.19,225.55,225.46,3.9898]
[1759411849176,7.19,225.55,225.44,7.64]
[1759411849581,7.19,225.55,225.46,3.9897]
[1759411849974,7.19,225.55,225.44,7.64]
[1759411850678,7.19,225.55,225.48,3.9893]
[1759411851073,7.19,225.55,225.44,7.64]
[1759411851469,7.19,225.55,225.46,3.9899]
[1759411851674,7.19,225.55,225.44,7.64]
[1759411853674,7.19,225.55,225.45,3.9899]
[1759411854081,7.19,225.55,225.47,3.9897]
[1759411854878,7.19,225.55,225.49,3.9893]
[1759411855075,46.72,225.57,225.49,3.9893]
[1759411855276,7.63,225.61,225.5,7.86]
[1759411855471,7.63,225.61,225.53,3.9885]
[1759411857076,100.06,225.63,225.46,7.86]
[1759411857280,14.5791252,225.62,225.46,7.86]
[1759411857481,7.63,225.62,225.46,7.86]
[1759411858177,7.63,225.62,225.47,62.0611]
[1759411858378,7.63,225.62,225.48,7.86]
[1759411858875,3.9874,225.61,225.5,3.989]
[1759411859480,7.63,225.62,225.48,7.86]
[1759411860384,10.59616531,225.62,225.4,62.0812]
[1759411860587,7.63,225.61,225.42,7.86]
[1759411860789,10.59616531,225.61,225.42,7.86]
[1759411861088,7.63,225.55,225.42,62.0748]
[1759411861382,7.63,225.6,225.49,7.86]
[1759411861582,23.34,225.63,225.52,7.86]
[1759411861780,7.63,225.65,225.55,62.0402]
[1759411861985,330.09,225.69,225.56,7.86]
[1759411862188,330.09,225.69,225.58,3.9876]
[1759411862480,330.09,225.69,225.59,69.889]
[1759411862676,118.45,225.76,225.65,3.9865]
[1759411862878,118.45,225.76,225.64,7.86]
[1759411863084,118.45,225.76,225.69,3.9858]
[1759411863284,7.63,225.76,225.64,12.35078025]
[1759411863481,327.19078025,225.85,225.68,62.0044]
[1759411863685,121.42275017,225.84,225.72,3.9852]
[1759411863983,2.97275017,225.83,225.7,7.86]
[1759411864185,7.63,225.82,225.71,61.9953]
[1759411864390,7.63,225.91,225.76,7.86]
[1759411864588,110.82,225.89,225.76,7.86]
[1759411865089,10.60483759,225.88,225.76,7.86]
[1759411865780,10.60483759,225.88,225.76,11.8445]
[1759411866188,7.63,225.88,225.76,11.8445]
[1759411866980,7.63,225.88,225.71,7.86]
[1759411867292,10.60383471,225.88,225.71,7.86]
[1759411867494,7.63,225.85,225.72,3.9853]
[1759411867986,7.63,225.85,225.75,7.86]
[1759411868293,35.04667645,225.96,225.75,7.86]
[1759411868294,2.97576419,225.88,225.78,61.9759]
[1759411868489,327.53395265,225.98,225.77,7.86]
[1759411868490,56.05,225.95,225.81,7.86]
[1759411868689,56.05,225.95,225.81,11.8436]
[1759411868885,56.05,225.95,225.81,7.86]
[1759411870094,7.63,225.93,225.77,12.35078025]
[1759411870397,10.59991334,225.93,225.77,7.86]
[1759411870592,7.63,225.91,225.77,7.86]
[1759411870900,7.63,225.89,225.71,7.86]
[1759411871095,7.63,225.86,225.71,7.86]
[1759411871298,65.91,225.86,225.71,7.86]
[1759411872600,65.91,225.86,225.72,3.9852]
[1759411872999,65.91,225.86,225.73,7.86]
[1759411873197,65.91,225.86,225.74,3.9848]
[1759411873398,65.91,225.86,225.73,7.86]
[1759411874294,127.8663,225.86,225.66,7.86]
[1759411875390,7.63,225.83,225.68,7.86]
[1759411876001,7.63,225.83,225.69,62.0021]
[1759411876204,7.63,225.91,225.74,7.86]
[1759411876408,60.08,225.9,225.74,7.86]
[1759411876597,60.08,225.9,225.76,7.86]
[1759411876895,7.63,225.89,225.76,7.86]
[1759411877304,60.89492045,225.94,225.79,7.86]
[1759411877492,60.89492045,225.94,225.8,3.9838]
[1759411878298,7.63,225.92,225.79,7.86]
[1759411878700,3.9823,225.89,225.72,7.86]
[1759411878900,7.63,225.88,225.76,3.9845]
[1759411879305,3.9827,225.87,225.72,7.86]
[1759411879605,7.63,225.88,225.72,7.86]
[1759411879606,7.63,225.86,225.72,7.86]
[1759411879805,49.88,225.85,225.72,7.86]
[1759411880605,53.863,225.85,225.72,11.8452]
[1759411881504,49.88,225.85,225.74,3.9849]
[1759411881706,87.78,225.85,225.74,3.9849]
[1759411882496,87.78,225.85,225.76,3.9846]
[1759411882697,7.63,225.92,225.77,7.86]
[1759411882908,7.63,225.92,225.78,61.9766]
[1759411883110,63.95,225.92,225.79,7.86]
[1759411883403,63.95,225.92,225.82,3.9835]
[1759411883610,7.63,225.92,225.8,61.9715]
[1759411883809,7.63,225.92,225.8,61.9709]
[1759411884003,7.63,225.92,225.81,3.9836]
[1759411884505,7.63,225.92,225.83,3.9833]
[1759411885505,7.63,225.92,225.83,11.7633]
[1759411885809,55.86492045,225.94,225.83,11.7633]
[1759411886205,59.84642045,225.94,225.83,7.78]
[1759411886406,7.68,225.93,225.78,7.78]
[1759411886813,7.68,225.83,225.71,3.9853]
[1759411887008,7.68,225.83,225.7,7.78]
[1759411887411,7.68,225.79,225.63,7.78]
[1759411888107,3.9842,225.78,225.63,7.78]
[1759411889115,7.68,225.79,225.63,7.78]
[1759411889318,7.68,225.79,225.67,3.9861]
[1759411890511,7.68,225.79,225.64,3.9865]
[1759411890914,7.68,225.79,225.63,7.78]
[1759411891315,3.9842,225.78,225.66,3.9863]
[1759411891616,7.68,225.79,225.64,62.0153]
[1759411892011,11.6641,225.79,225.68,3.9859]
[1759411892717,7.68,225.79,225.68,3.9859]
[1759411893521,11.664,225.79,225.65,3.9863]
[1759411893722,7.68,225.79,225.65,3.9863]
[1759411894324,7.68,225.79,225.67,3.9861]
[1759411894524,7.68,225.79,225.65,7.78]
[1759411895416,40.2,225.79,225.66,62.0101]
[1759411896025,40.2,225.79,225.71,3.9854]
[1759411896927,40.2,225.79,225.69,3.9858]
[1759411897521,7.68,225.84,225.68,62.0029]
[1759411897721,37.44,225.84,225.69,7.78]
[1759411897932,7.68,225.93,225.76,7.78]
[1759411898121,11.6616,225.93,225.76,7.78]
[1759411898321,11.6616,225.93,225.77,61.9797]
[1759411898522,11.6616,225.93,225.82,3.9833]
[1759411898726,7.68,225.93,225.8,61.9716]
[1759411899027,7.68,225.93,225.78,7.78]
[1759411899924,115.32492045,225.94,225.7,69.9679]
[1759411899925,7.68,225.9,225.7,61.9968]
[1759411900126,7.68,225.89,225.71,7.78]
[1759411900723,7.68,225.87,225.71,11.7653]
[1759411900925,7.68,225.85,225.65,7.78]
[1759411901125,7.68,225.83,225.66,62.0094]
[1759411901325,7.68,225.83,225.71,3.9853]
[1759411901824,7.68,225.83,225.68,62.0045]
[1759411902030,7.68,225.83,225.69,7.78]
[1759411902221,3.9835,225.82,225.7,3.9855]
[1759411902426,3.9835,225.82,225.69,7.78]
[1759411902827,7.68,225.83,225.69,7.78]
[1759411903031,7.68,225.83,225.72,3.9851]
[1759411903229,7.68,225.83,225.69,7.78]
[1759411903432,7.68,225.83,225.63,69.7964]
[1759411903433,7.68,225.82,225.63,69.7964]
[1759411903927,7.68,225.82,225.65,7.78]
[1759411904128,69.6472,225.82,225.65,7.78]
[1759411904522,61.9719,225.8,225.65,7.78]
[1759411904727,7.68,225.79,225.65,7.78]
[1759411905131,3.985,225.74,225.65,7.78]
[1759411905334,7.68,225.79,225.65,7.78]
[1759411905626,7.68,225.79,225.66,3.9863]
[1759411905627,3.9844,225.78,225.66,3.9863]
[1759411905931,35.1244,225.78,225.66,3.9863]
[1759411906327,7.68,225.79,225.65,7.78]
[1759411906530,7.68,225.84,225.68,7.78]
[1759411906728,44.68,225.84,225.68,7.78]
[1759411907028,7.68,225.84,225.71,61.9963]
[1759411907325,7.68,225.9,225.75,7.78]
[1759411907529,7.68,225.9,225.77,7.78]
[1759411907722,7.68,225.9,225.78,3.984]
[1759411907926,7.68,225.9,225.77,7.78]
[1759411909232,3.9824,225.89,225.77,7.78]
[1759411910034,3.9826,225.87,225.77,7.78]
[1759411910835,3.983,225.85,225.75,3.9847]
[1759411911024,7.68,225.86,225.72,11.7651]
[1759411911434,3.9834,225.83,225.72,11.7651]
[1759411911929,7.68,225.86,225.72,7.78]
[1759411913933,61.9397,225.92,225.73,7.7]
[1759411914133,7.9,225.91,225.73,7.7]
[1759411914534,7.9,225.91,225.81,3.9837]
[1759411914738,7.9,225.91,225.81,11.6837]
[1759411914938,3.9816,225.93,225.81,7.7]
[1759411915529,4.20492045,225.94,225.81,7.7]
[1759411916627,4.20492045,225.94,225.84,3.9831]
[1759411916939,3.9818,225.92,225.81,7.7]
[1759411917631,3.9821,225.9,225.81,7.7]
[1759411917836,7.9,225.91,225.79,3.984]
[1759411918037,7.9,225.91,225.77,7.7]
[1759411918937,3.9828,225.86,225.77,7.7]
[1759411919139,79.44,225.91,225.77,7.7]
[1759411919736,3.9824,225.89,225.77,7.7]
[1759411920241,79.44,225.91,225.77,7.7]
[1759411921237,7.9,225.86,225.77,7.7]
[1759411921438,7.9,225.86,225.7,7.7]
[1759411921944,33.94,225.9,225.75,7.7]
[1759411922438,33.94,225.9,225.76,61.9827]
[1759411922642,33.94,225.9,225.77,7.7]
[1759411923044,37.9223,225.9,225.77,7.7]
[1759411923236,33.94,225.9,225.77,7.7]
[1759411923436,33.94,225.9,225.8,3.9838]
[1759411923745,7.9,225.93,225.8,7.7]
[1759411924134,326.6607,225.98,225.83,7.7]
[1759411924339,7.9,225.99,225.83,7.7]
[1759411924738,3.9808,225.98,225.88,3.9823]
[1759411926643,3.9808,225.98,225.87,7.7]
[1759411926841,7.9,225.99,225.87,7.7]
[1759411927041,11.94510717,226.08,225.87,7.7]
[1759411927042,7.9,226.05,225.89,61.9469]
[1759411927541,0.77026085,226.07,225.95,7.7]
[1759411927746,54.72,226.1,225.95,7.7]
[1759411928046,59.46871596,226.1,225.95,7.7]
[1759411928637,47.59011596,226.1,225.95,7.7]
[1759411928843,7.9,226.07,225.89,94.56]
[1759411929038,7.9,226.07,225.9,7.7]
[1759411929239,11.8791,226.07,225.95,3.9812]
[1759411929747,11.8791,226.07,225.94,7.7]
[1759411929946,7.9,226.07,225.97,3.9808]
[1759411930644,0.77011596,226.1,225.99,3.9804]
[1759411931235,0.77011596,226.1,225.98,7.7]
[1759411931236,322.3,226.11,226.02,7.7]
[1759411932447,111.7,226.14,226.02,7.7]
[1759411932646,111.7,226.14,226.03,3.9798]
[1759411932845,3.9776,226.16,226.03,3.9798]
[1759411933044,115.6576,226.16,226.03,3.9798]
[1759411933246,116.42749447,226.16,226.02,7.7]
[1759411933443,7.9,226.15,226.02,7.7]
[1759411933949,7.9,226.15,226.04,7.7]
[1759411935140,7.9,226.15,226.04,11.6795]
[1759411935850,7.9,226.15,225.99,69.6179]
[1759411936047,7.9,226.15,226.02,61.911]
[1759411936246,7.9,226.15,226.03,7.7]
[1759411936443,7.9,226.15,226.05,3.9794]
[1759411936646,7.9,226.15,226.03,7.7]
[1759411936647,7.9,226.15,226.04,61.9055]
[1759411936848,0.76986892,226.18,226.05,7.7]
[1759411937643,0.76986892,226.18,226.09,3.9787]
[1759411937848,7.9,226.19,226.09,3.9787]
[1759411938349,7.9,226.19,226.08,7.7]
[1759411939955,7.9,226.19,226.08,69.5939]
[1759411940251,0.76970716,226.23,226.11,61.8866]
[1759411940443,7.9,226.24,226.14,61.8785]
[1759411940650,7.9,226.24,226.13,7.7]
[1759411941052,7.9,226.24,226.07,7.7]
[1759411941250,7.9,226.24,226.11,3.9784]
[1759411941854,7.9,226.24,226.13,3.978]
[1759411942645,7.9,226.24,226.11,7.7]
[1759411942851,7.9,226.24,226.06,7.7]
[1759411943254,28.6,226.23,226.08,7.12]
[1759411943447,56.28,226.24,226.09,61.8921]
[1759411943847,7.15,226.23,226.08,11.59698948]
[1759411944359,3.9766,226.21,226.08,7.12]
[1759411944656,7.15,226.2,226.08,7.12]
[1759411945157,7.15,226.2,226.09,3.9787]
[1759411945453,7.15,226.2,226.13,3.978]
[1759411945656,7.15,226.2,226.07,7.24]
[1759411947248,11.127,226.2,226.07,7.24]
[1759411947651,7.15,226.2,226.07,7.24]
[1759411947852,118.63,226.2,226.07,7.24]
[1759411948552,118.63,226.2,226.1,3.9784]
[1759411948858,118.73,226.2,226.1,3.9784]
[1759411949259,118.69,226.2,226.05,7.24]
[1759411949760,118.69,226.2,226.08,3.9789]
[1759411949962,118.69,226.2,226.05,7.24]
[1759411950761,7.15,226.18,226.05,7.24]
[1759411950953,111.64,226.22,226.07,7.24]
[1759411951150,118.79,226.22,226.12,3.9781]
[1759411951556,7.15,226.22,226.11,7.24]
[1759411951759,7.15,226.22,226.14,3.9777]
[1759411951962,7.15,226.22,226.11,7.24]
[1759411952261,7.15,226.22,226.14,3.9777]
[1759411952457,7.15,226.22,226.11,7.24]
[1759411952659,7.15,226.22,226.12,61.8831]
[1759411952850,7.15,226.22,226.11,7.24]
[1759411953859,7.15,226.22,226.15,3.9777]
[1759411954054,7.15,226.22,226.11,7.24]
[1759411954751,7.15,226.22,226.06,69.1405]
[1759411954956,7.15,226.22,226.06,7.24]
[1759411955157,7.15,226.19,226.09,3.9787]
[1759411955458,7.15,226.19,226.06,7.24]
[1759411955659,7.15,226.19,226.1,3.9784]
[1759411955854,7.15,226.19,226.06,7.24]
[1759411956056,7.15,226.21,226.09,7.24]
[1759411957365,7.15,226.18,226.07,3.9789]
[1759411957759,7.15,226.18,226.03,7.24]
[1759411957960,11.1273,226.18,226.06,3.9792]
[1759411958157,7.15,226.16,226.06,3.9792]
[1759411958468,7.15,226.16,226.03,7.24]
[1759411958763,68.31,226.16,226.03,7.24]
[1759411959164,7.15,226.16,226.03,7.24]
[1759411959364,85.79,226.16,226.03,7.24]
[1759411959564,7.15,226.16,226.09,3.9786]
[1759411959960,7.15,226.16,226.07,7.24]
[1759411960365,7.15,226.16,226.1,3.9784]
[1759411960868,7.15,226.16,226.08,3.9789]
[1759411961062,7.15,226.16,226.03,7.24]
[1759411961768,7.15,226.16,226.07,3.979]
[1759411962560,7.15,226.12,225.99,90.1785]
[1759411962866,7.15,226.12,225.99,28.26]
[1759411963169,7.15,226.12,226.03,7.24]
[1759411963666,55.7,226.14,226.07,3.979]
[1759411963968,111.62,226.15,226.07,3.979]
[1759411964168,7.15,226.16,226.08,3.9787]
[1759411964466,7.15,226.16,226.01,61.9125]
[1759411964467,321.86,226.21,226.06,66.37728948]
[1759411964668,7.15,226.2,226.12,3.9781]
[1759411964870,7.15,226.2,226.09,7.24]
[1759411965267,3.9759,226.25,226.1,61.8892]
[1759411965568,7.15,226.24,226.13,7.24]
[1759411965960,7.15,226.24,226.13,69.1199]
[1759411966571,7.15,226.24,226.15,3.9775]
[1759411966961,0.76957099,226.27,226.14,61.8778]
[1759411967268,321.88,226.29,226.15,7.24]
[1759411967666,321.88,226.29,226.19,3.977]
[1759411968067,7.15,226.28,226.15,7.24]
[1759411968672,7.15,226.28,226.14,66.35478948]
[1759411968673,7.15,226.28,226.22,3.9764]
[1759411968974,7.15,226.28,226.17,7.24]
[1759411969171,7.15,226.28,226.22,3.9763]
[1759411969373,321.88,226.29,226.16,61.873]
[1759411969374,433.62,226.29,226.2,7.24]
[1759411969571,321.88,226.29,226.2,7.24]
[1759411969769,433.62,226.29,226.21,3.9765]
[1759411969965,433.62,226.29,226.18,4.47698948]
[1759411970173,7.91942636,226.28,226.14,7.24]
[1759411970372,11.89502636,226.28,226.17,3.9773]
[1759411970965,7.15,226.26,226.09,7.24]
[1759411971379,7.15,226.23,226.05,4.47698948]
[1759411971673,7.15,226.2,226.08,3.9788]
[1759411971873,81.76,226.19,226.08,3.9788]
[1759411972174,81.76,226.19,226.05,4.47698948]
[1759411972874,7.15,226.2,226.06,61.8999]
[1759411973074,7.15,226.2,226.07,7.24]
[1759411973279,55.44,226.19,226.07,7.24]
[1759411974378,7.29,226.18,226.02,7.54]
[1759411974570,61.877,226.15,225.95,12.42165398]
[1759411974771,7.29,226.12,225.97,3.9807]
[1759411974980,38.8,226.11,225.95,7.54]
[1759411975175,58.46,226.1,225.95,69.4697]
[1759411975576,7.29,226.09,226.0,3.9803]
[1759411976086,7.29,226.17,226.03,7.54]
[1759411976381,7.29,226.17,226.06,7.54]
[1759411977684,66.99,226.17,226.09,3.9787]
[1759411978281,7.29,226.17,226.1,3.9784]
[1759411978476,62.5,226.18,226.1,3.9784]
[1759411978677,69.79,226.18,226.1,3.9784]
[1759411979474,7.29,226.18,226.12,3.9782]
[1759411980370,7.29,226.18,226.09,7.54]
[1759411980886,111.96,226.19,226.09,7.54]
[1759411981388,329.13,226.26,226.11,69.4264]
[1759411981687,112.04,226.25,226.11,69.4264]
[1759411982080,7.29,226.26,226.17,3.9773]
[1759411982281,7.29,226.24,226.11,7.54]
[1759411982588,7.29,226.24,226.12,3.978]
[1759411983682,7.29,226.24,226.14,3.9779]
[1759411983878,3.9763,226.23,226.11,7.54]
[1759411984078,7.29,226.24,226.06,12.01698948]
[1759411984278,7.29,226.24,226.08,3.9789]
[1759411984479,41.68,226.25,226.06,12.01698948]
[1759411984881,4.47698948,226.27,226.1,7.54]
[1759411984882,7.29,226.24,226.1,7.54]
[1759411985081,57.22,226.23,226.1,7.54]
[1759411985680,7.29,226.24,226.12,61.8837]
[1759411985889,8.05942636,226.28,226.16,61.8721]
[1759411986082,7.29,226.28,226.17,61.8698]
[1759411986285,7.29,226.28,226.17,61.8703]
[1759411986687,7.29,226.28,226.15,7.54]
[1759411986990,7.29,226.28,226.18,3.977]
[1759411987192,7.29,226.28,226.15,7.54]
[1759411988881,7.29,226.28,226.14,66.35468948]
[1759411989093,7.29,226.28,226.21,3.9765]
[1759411989887,7.29,226.28,226.18,3.977]
[1759411990084,7.29,226.28,226.12,7.54]
[1759411990281,7.29,226.26,226.12,7.54]
[1759411990488,7.29,226.26,226.13,3.9779]
[1759411990690,7.29,226.26,226.12,7.54]
[1759411990887,111.9,226.25,226.12,7.54]
[1759411991080,111.9,226.25,226.13,61.881]
[1759411991285,7.29,226.26,226.13,61.881]
[1759411991484,7.29,226.26,226.16,61.8723]
[1759411991686,8.05942636,226.31,226.22,7.54]
[1759411991895,56.54,226.3,226.22,7.54]
[1759411992090,8.05942636,226.31,226.22,3.9764]
[1759411992394,119.93942636,226.31,226.22,3.9764]
[1759411992595,119.93942636,226.31,226.19,3.9768]
[1759411992790,124.41641584,226.31,226.11,61.8854]
[1759411992990,7.29,226.3,226.12,61.8836]
[1759411993192,117.12641584,226.31,226.12,61.8836]
[1759411993787,7.29,226.27,226.14,7.54]
[1759411994092,111.9,226.26,226.14,7.54]
[1759411994295,7.29,226.27,226.18,3.977]
[1759411994494,111.88,226.26,226.18,3.977]
[1759411995195,111.86,226.26,226.18,3.977]
[1759411995803,119.11,226.27,226.18,3.977]
[1759411996095,119.11,226.27,226.14,7.54]
[1759411996499,7.29,226.25,226.14,7.54]
[1759411996893,7.29,226.25,226.15,3.9777]
[1759411997291,7.29,226.26,226.09,7.54]
[1759411997497,7.29,226.22,226.1,3.9786]
[1759411998496,7.29,226.2,226.08,3.9789]
[1759411998796,55.54,226.19,226.07,7.54]
[1759411999595,7.29,226.2,226.1,3.9786]
[1759411999800,7.29,226.2,226.07,7.54]
[1759411999999,63.58,226.19,226.07,7.54]
[1759412000401,89.66,226.18,226.07,7.54]
[1759412000801,89.66,226.18,226.11,3.9782]
[1759412001001,7.29,226.2,226.08,61.8945]
[1759412001307,18.99,226.28,226.13,7.54]
[1759412001501,18.99,226.28,226.14,61.8779]
[1759412001804,68.48,226.27,226.15,7.54]
[1759412002005,7.29,226.28,226.15,7.54]
[1759412002402,60.46,226.27,226.15,7.54]
[1759412002706,60.46,226.27,226.12,4.47698948]
[1759412002707,7.29,226.26,226.12,4.47698948]
[1759412003206,7.29,226.26,226.1,69.4296]
[1759412003605,7.7,226.26,226.12,3.9781]
[1759412003915,7.7,226.22,226.05,7.85]
[1759412004098,11.6766,226.22,226.09,3.9786]
[1759412005106,3.9768,226.2,226.09,3.9786]
[1759412005306,7.77,226.19,226.09,3.9786]
[1759412005704,42.04,226.18,226.05,7.85]
[1759412005905,7.77,226.17,226.05,7.85]
[1759412006105,63.4,226.16,226.05,7.85]
[1759412006505,7.77,226.17,226.05,7.85]
[1759412006707,23.41,226.17,226.08,3.9789]
[1759412006907,23.41,226.17,226.05,7.85]
[1759412008012,7.77,226.26,226.08,61.8935]
[1759412008307,61.9,226.25,226.14,61.8783]
[1759412008511,7.77,226.26,226.15,7.91]
[1759412008919,7.77,226.26,226.19,3.9768]
[1759412009713,7.77,226.26,226.15,7.91]
[1759412009906,7.77,226.26,226.1,7.91]
[1759412010709,7.77,226.23,226.14,3.9777]
[1759412011607,7.77,226.23,226.11,3.9782]
[1759412011809,7.77,226.21,226.11,3.9782]
[1759412012010,7.77,226.21,226.1,7.91]
[1759412013515,7.77,226.21,226.13,3.9779]
[1759412014116,7.77,226.21,226.14,3.9777]
[1759412016009,0.76958801,226.25,226.15,3.9775]
[1759412016010,111.7,226.23,226.15,3.9775]
[1759412016210,120.25958801,226.25,226.13,7.91]
[1759412016715,120.25958801,226.25,226.15,3.9777]
[1759412017215,7.77,226.25,226.18,3.9771]
[1759412017410,7.77,226.25,226.13,7.91]
[1759412018516,7.77,226.26,226.08,7.91]
[1759412018912,11.7459,226.26,226.08,69.8042]
[1759412019211,67.04,226.25,226.11,7.91]
[1759412019614,67.04,226.25,226.15,3.9776]
[1759412019815,7.77,226.26,226.12,61.8835]
[1759412020010,56.04,226.25,226.13,7.91]
[1759412020212,7.77,226.26,226.13,7.91]
[1759412020405,119.45,226.26,226.13,7.91]
[1759412020912,8.5394859,226.28,226.15,61.8752]
[1759412021120,7.77,226.28,226.16,7.91]
[1759412021613,7.77,226.28,226.2,3.9767]
[1759412022014,7.77,226.28,226.16,7.91]
[1759412022513,7.77,226.28,226.17,61.8688]
[1759412022710,321.86,226.33,226.2,61.8614]
[1759412022711,329.63,226.33,226.2,61.8614]
[1759412023017,441.41,226.33,226.2,61.8614]
[1759412023415,441.41,226.33,226.25,3.9758]
[1759412023919,446.1540158,226.33,226.22,3.9763]
[1759412024518,7.77,226.32,226.15,7.91]
[1759412025112,3.975,226.31,226.2,3.9767]
[1759412025314,115.795,226.31,226.19,7.91]
[1759412026114,115.795,226.31,226.21,3.9765]
[1759412028416,7.77,226.32,226.19,7.91]
[1759412028623,7.77,226.32,226.2,61.8615]
[1759412028823,111.7,226.31,226.2,61.8615]
[1759412029216,111.7,226.31,226.23,3.9762]
[1759412029922,7.77,226.3,226.21,3.9766]
[1759412032118,7.77,226.3,226.19,3.977]
[1759412032318,7.77,226.3,226.15,7.91]
[1759412032622,7.77,226.28,226.15,7.91]
[1759412032824,111.66,226.27,226.15,7.91]
[1759412033217,111.66,226.27,226.19,3.9769]
[1759412033925,7.36,226.25,226.17,3.9773]
[1759412035325,11.336,226.25,226.15,11.8876]
[1759412035722,3.9765,226.22,226.11,3.9784]
[1759412035924,7.36,226.21,226.05,7.19]
[1759412036120,7.36,226.19,226.05,7.19]
[1759412036324,27.34,226.18,226.12,3.19]
[1759412037819,96.8,226.19,226.12,3.19]
[1759412038219,96.8,226.19,226.12,9.85]
[1759412038516,100.777,226.19,226.12,9.85]
[1759412038722,96.8,226.19,226.12,9.85]
[1759412039320,7.36,226.19,226.12,9.85]
[1759412039524,59.5,226.2,226.12,9.85]
[1759412039725,59.5,226.2,226.13,7.19]
[1759412040326,7.36,226.24,226.13,7.19]
[1759412040530,396.38045168,226.33,226.12,71.7325]
[1759412040531,6.88,226.27,226.16,7.19]
[1759412040729,7.36,226.32,226.16,7.19]
[1759412040930,111.6,226.31,226.16,7.19]
[1759412041133,7.36,226.32,226.18,61.867]
[1759412041337,111.6,226.31,226.19,7.19]
[1759412041720,7.36,226.3,226.19,7.19]
[1759412042034,7.36,226.3,226.13,7.19]
[1759412042527,3.9759,226.26,226.17,3.9772]
[1759412042722,7.36,226.25,226.17,3.9772]
[1759412043128,96.6,226.25,226.18,3.977]
[1759412043732,7.36,226.3,226.18,61.8668]
[1759412043930,7.36,226.3,226.14,7.19]
[1759412044322,3.9759,226.26,226.16,3.9773]
[1759412044534,7.36,226.25,226.16,3.9773]
[1759412045930,11.3361,226.25,226.14,7.19]